[Event "Titled Tuesday Blitz August 1 Early 2023"]
[White "Kravtsiv, Martyn"]
[Black "Hua, Lefong"]
[WhiteFideId "14113147"]
[BlackFideId "2602253"]
[WhiteElo "2872"]
[BlackElo "2643"]
[Result "1/2-1/2"]
[Round "3"]
[TimeControl "180+1"]
[Date "2023.08.01"]
[WhiteClock "0:00:13"]
[BlackClock "0:00:21"]
[Board "28"]

1. e4 {[%clk 0:03:00]}  c5 {[%clk 0:02:59]} 2. Nf3 {[%clk 0:03:01]}  g6 {[%clk 0:02:58]} 3. d4 {[%clk 0:03:00]}  cxd4 {[%clk 0:02:59]} 4. Nxd4 {[%clk 0:03:01]}  Bg7 {[%clk 0:02:59]} 5. c4 {[%clk 0:03:01]}  Nc6 {[%clk 0:02:59]} 6. Nc2 {[%clk 0:03:00]}  Nf6 {[%clk 0:02:59]} 7. Nc3 {[%clk 0:03:01]}  d6 {[%clk 0:02:59]} 8. Be2 {[%clk 0:03:01]}  O-O {[%clk 0:03:00]} 9. O-O {[%clk 0:03:00]}  Be6 {[%clk 0:03:01]} 10. Rb1 {[%clk 0:02:58]}  Rc8 {[%clk 0:02:59]} 11. b3 {[%clk 0:02:57]}  a6 {[%clk 0:02:55]} 12. Bb2 {[%clk 0:02:57]}  Nd7 {[%clk 0:02:50]} 13. Ne3 {[%clk 0:02:53]}  Re8 {[%clk 0:02:41]} 14. Kh1 {[%clk 0:02:51]}  Qa5 {[%clk 0:02:37]} 15. Qe1 {[%clk 0:02:46]}  Nd4 {[%clk 0:02:33]} 16. Bd3 {[%clk 0:02:34]}  Nc5 {[%clk 0:02:17]} 17. Rd1 {[%clk 0:02:33]}  Nxd3 {[%clk 0:02:11]} 18. Rxd3 {[%clk 0:02:33]}  b5 {[%clk 0:02:11]} 19. Qd1 {[%clk 0:02:27]}  Nc6 {[%clk 0:02:01]} 20. cxb5 {[%clk 0:02:26]}  axb5 {[%clk 0:02:01]} 21. a3 {[%clk 0:02:26]}  b4 {[%clk 0:01:57]} 22. axb4 {[%clk 0:02:10]}  Nxb4 {[%clk 0:01:56]} 23. Rd4 {[%clk 0:02:11]}  Bxd4 {[%clk 0:01:49]} 24. Qxd4 {[%clk 0:02:11]}  Qc5 {[%clk 0:01:45]} 25. Qd2 {[%clk 0:02:09]}  Bxb3 {[%clk 0:01:41]} 26. Nf5 {[%clk 0:01:59]}  f6 {[%clk 0:01:07]} 27. Nh6+ {[%clk 0:01:47]}  Kg7 {[%clk 0:01:01]} 28. Ng4 {[%clk 0:01:48]}  Be6 {[%clk 0:00:55]} 29. Ne3 {[%clk 0:01:47]}  h5 {[%clk 0:00:44]} 30. f4 {[%clk 0:01:48]}  Bf7 {[%clk 0:00:42]} 31. Ne2 {[%clk 0:01:16]}  Nc2 {[%clk 0:00:36]} 32. Nd4 {[%clk 0:01:08]}  Nxe3 {[%clk 0:00:32]} 33. Qxe3 {[%clk 0:01:09]}  e5 {[%clk 0:00:29]} 34. fxe5 {[%clk 0:01:06]}  dxe5 {[%clk 0:00:29]} 35. Qf2 {[%clk 0:00:55]}  Qe7 {[%clk 0:00:22]} 36. Nf3 {[%clk 0:00:54]}  Bc4 {[%clk 0:00:20]} 37. Ra1 {[%clk 0:00:47]}  Red8 {[%clk 0:00:19]} 38. h3 {[%clk 0:00:46]}  Bf7 {[%clk 0:00:18]} 39. Ra6 {[%clk 0:00:43]}  Rd6 {[%clk 0:00:14]} 40. Ra5 {[%clk 0:00:40]}  Rd1+ {[%clk 0:00:13]} 41. Kh2 {[%clk 0:00:39]}  Rcd8 {[%clk 0:00:12]} 42. Nxe5 {[%clk 0:00:38]}  fxe5 {[%clk 0:00:11]} 43. Rxe5 {[%clk 0:00:37]}  Qd6 {[%clk 0:00:10]} 44. Qg3 {[%clk 0:00:29]}  Kg8 {[%clk 0:00:09]} 45. Qg5 {[%clk 0:00:24]}  Rd2 {[%clk 0:00:08]} 46. Bc3 {[%clk 0:00:23]}  Rd3 {[%clk 0:00:08]} 47. Ba1 {[%clk 0:00:24]}  Re8 {[%clk 0:00:08]} 48. Qf4 {[%clk 0:00:21]}  Rxe5 {[%clk 0:00:08]} 49. Bxe5 {[%clk 0:00:21]}  Qe6 {[%clk 0:00:08]} 50. Ba1 {[%clk 0:00:20]}  Rd8 {[%clk 0:00:08]} 51. h4 {[%clk 0:00:18]}  Re8 {[%clk 0:00:08]} 52. Qh6 {[%clk 0:00:18]}  Qd6+ {[%clk 0:00:06]} 53. g3 {[%clk 0:00:18]}  Re5 {[%clk 0:00:03]} 54. Qf4 {[%clk 0:00:18]}  Re6 {[%clk 0:00:02]} 55. Qh6 {[%clk 0:00:18]}  Re5 {[%clk 0:00:02]} 56. Qf4 {[%clk 0:00:18]}  Rd5 {[%clk 0:00:01]} 57. exd5 {[%clk 0:00:10]}  Qxf4 {[%clk 0:00:02]} 58. gxf4 {[%clk 0:00:10]}  Bxd5 {[%clk 0:00:02]} 59. Kg3 {[%clk 0:00:10]}  Kf7 {[%clk 0:00:03]} 60. Bd4 {[%clk 0:00:08]}  Be6 {[%clk 0:00:04]} 61. Be5 {[%clk 0:00:08]}  Bf5 {[%clk 0:00:05]} 62. Kf2 {[%clk 0:00:08]}  Ke6 {[%clk 0:00:05]} 63. Ke3 {[%clk 0:00:09]}  Kd5 {[%clk 0:00:06]} 64. Kd2 {[%clk 0:00:09]}  Ke6 {[%clk 0:00:07]} 65. Kc3 {[%clk 0:00:09]}  Kd5 {[%clk 0:00:08]} 66. Kb4 {[%clk 0:00:09]}  Ke4 {[%clk 0:00:09]} 67. Kc5 {[%clk 0:00:09]}  Kf3 {[%clk 0:00:10]} 68. Kd6 {[%clk 0:00:08]}  Kg4 {[%clk 0:00:11]} 69. Bf6 {[%clk 0:00:08]}  Kxf4 {[%clk 0:00:11]} 70. Bg5+ {[%clk 0:00:09]}  Kg4 {[%clk 0:00:12]} 71. Bf6 {[%clk 0:00:09]}  Kf3 {[%clk 0:00:13]} 72. Bg5 {[%clk 0:00:10]}  Ke2 {[%clk 0:00:13]} 73. Bf6 {[%clk 0:00:10]}  Kf1 {[%clk 0:00:14]} 74. Bg5 {[%clk 0:00:11]}  Kg2 {[%clk 0:00:15]} 75. Bf6 {[%clk 0:00:11]}  Kf3 {[%clk 0:00:16]} 76. Bg5 {[%clk 0:00:12]}  Ke4 {[%clk 0:00:17]} 77. Bf6 {[%clk 0:00:12]}  Kd3 {[%clk 0:00:18]} 78. Bg5 {[%clk 0:00:12]}  Ke4 {[%clk 0:00:19]} 79. Bf6 {[%clk 0:00:13]}  Kd3 {[%clk 0:00:20]} 80. Bg5 {[%clk 0:00:13]}  Ke4 {[%clk 0:00:21]} 1/2-1/2


[Site "https://www.chess.com"]

[Event "Titled Tuesday Blitz August 1 Early 2023"]
[White "Popilski, Gil"]
[Black "Rasulov, Vugar"]
[WhiteFideId "2809060"]
[BlackFideId "13402390"]
[WhiteElo "2636"]
[BlackElo "2860"]
[Result "1-0"]
[Round "3"]
[TimeControl "180+1"]
[Date "2023.08.01"]
[WhiteClock "0:00:18"]
[BlackClock "0:00:08"]
[Board "30"]

1. e4 {[%clk 0:02:55]}  c6 {[%clk 0:02:59]} 2. d4 {[%clk 0:02:54]}  d5 {[%clk 0:03:00]} 3. exd5 {[%clk 0:02:55]}  cxd5 {[%clk 0:03:00]} 4. c4 {[%clk 0:02:56]}  Nf6 {[%clk 0:03:00]} 5. Nc3 {[%clk 0:02:56]}  e6 {[%clk 0:03:00]} 6. Nf3 {[%clk 0:02:52]}  Be7 {[%clk 0:02:59]} 7. cxd5 {[%clk 0:02:50]}  Nxd5 {[%clk 0:02:59]} 8. Bc4 {[%clk 0:02:50]}  O-O {[%clk 0:02:58]} 9. O-O {[%clk 0:02:51]}  Nc6 {[%clk 0:02:56]} 10. Re1 {[%clk 0:02:49]}  Nf6 {[%clk 0:02:54]} 11. a3 {[%clk 0:02:47]}  b6 {[%clk 0:02:54]} 12. Bg5 {[%clk 0:02:42]}  Bb7 {[%clk 0:02:52]} 13. Ba2 {[%clk 0:02:42]}  Rc8 {[%clk 0:02:50]} 14. Qd3 {[%clk 0:02:41]}  Na5 {[%clk 0:02:40]} 15. Rad1 {[%clk 0:02:40]}  Nd5 {[%clk 0:02:33]} 16. Bxe7 {[%clk 0:01:25]}  Nxe7 {[%clk 0:02:33]} 17. Ng5 {[%clk 0:01:25]}  Ng6 {[%clk 0:02:24]} 18. h4 {[%clk 0:01:21]}  Qf6 {[%clk 0:02:07]} 19. Nce4 {[%clk 0:00:50]}  Bxe4 {[%clk 0:02:04]} 20. Rxe4 {[%clk 0:00:51]}  Rcd8 {[%clk 0:01:47]} 21. Rg4 {[%clk 0:00:47]}  Qf5 {[%clk 0:01:19]} 22. Qxf5 {[%clk 0:00:27]}  exf5 {[%clk 0:01:20]} 23. Rg3 {[%clk 0:00:27]}  Nc6 {[%clk 0:01:08]} 24. d5 {[%clk 0:00:26]}  Nce5 {[%clk 0:01:04]} 25. h5 {[%clk 0:00:26]}  Nf4 {[%clk 0:01:04]} 26. Re3 {[%clk 0:00:26]}  Ng4 {[%clk 0:00:48]} 27. Re7 {[%clk 0:00:25]}  h6 {[%clk 0:00:45]} 28. Nxf7 {[%clk 0:00:24]}  Rxf7 {[%clk 0:00:22]} 29. d6 {[%clk 0:00:24]}  Nf6 {[%clk 0:00:13]} 30. Rxf7 {[%clk 0:00:22]}  Kh7 {[%clk 0:00:14]} 31. Bb1 {[%clk 0:00:20]}  Kg8 {[%clk 0:00:12]} 32. Rxa7 {[%clk 0:00:20]}  Ne4 {[%clk 0:00:11]} 33. Bxe4 {[%clk 0:00:19]}  fxe4 {[%clk 0:00:12]} 34. Re7 {[%clk 0:00:19]}  Nxh5 {[%clk 0:00:11]} 35. d7 {[%clk 0:00:19]}  Nf6 {[%clk 0:00:11]} 36. Re6 {[%clk 0:00:19]}  b5 {[%clk 0:00:09]} 37. Re5 {[%clk 0:00:18]}  Kf7 {[%clk 0:00:08]} 38. Rxb5 {[%clk 0:00:18]}  Ke6 {[%clk 0:00:09]} 39. Rb6+ {[%clk 0:00:18]}  Ke7 {[%clk 0:00:09]} 40. Rb7 {[%clk 0:00:18]}  g5 {[%clk 0:00:09]} 41. a4 {[%clk 0:00:18]}  h5 {[%clk 0:00:09]} 42. a5 {[%clk 0:00:18]}  h4 {[%clk 0:00:08]} 43. a6 {[%clk 0:00:18]}  g4 {[%clk 0:00:08]} 44. a7 {[%clk 0:00:19]}  g3 {[%clk 0:00:09]} 45. fxg3 {[%clk 0:00:18]}  hxg3 {[%clk 0:00:08]} 46. Rb8 {[%clk 0:00:18]} 1-0


[Site "https://www.chess.com"]

[Event "Titled Tuesday Blitz August 1 Early 2023"]
[White "Ashraf, Artin"]
[Black "Ovetchkin, Roman"]
[WhiteFideId "22514805"]
[BlackFideId "4119991"]
[WhiteElo "2858"]
[BlackElo "2633"]
[Result "1-0"]
[Round "3"]
[TimeControl "180+1"]
[Date "2023.08.01"]
[WhiteClock "0:00:03"]
[BlackClock "0:00:00"]
[Board "31"]

1. c4 {[%clk 0:03:00]}  e6 {[%clk 0:02:56]} 2. g3 {[%clk 0:02:52]}  d5 {[%clk 0:02:57]} 3. Bg2 {[%clk 0:02:52]}  Nf6 {[%clk 0:02:52]} 4. Nf3 {[%clk 0:02:44]}  Be7 {[%clk 0:02:52]} 5. O-O {[%clk 0:02:38]}  O-O {[%clk 0:02:52]} 6. d4 {[%clk 0:02:38]}  c6 {[%clk 0:02:12]} 7. b3 {[%clk 0:02:34]}  a5 {[%clk 0:02:01]} 8. Ba3 {[%clk 0:02:26]}  a4 {[%clk 0:01:57]} 9. Bxe7 {[%clk 0:02:17]}  Qxe7 {[%clk 0:01:57]} 10. Nc3 {[%clk 0:02:01]}  axb3 {[%clk 0:01:56]} 11. axb3 {[%clk 0:02:01]}  Rxa1 {[%clk 0:01:56]} 12. Qxa1 {[%clk 0:02:02]}  Qb4 {[%clk 0:01:55]} 13. Ne5 {[%clk 0:01:27]}  Nfd7 {[%clk 0:01:42]} 14. Nxd7 {[%clk 0:00:44]}  Nxd7 {[%clk 0:01:36]} 15. e3 {[%clk 0:00:38]}  Qxb3 {[%clk 0:01:28]} 16. Rb1 {[%clk 0:00:31]}  Qc2 {[%clk 0:01:24]} 17. Rc1 {[%clk 0:00:27]}  Qg6 {[%clk 0:01:18]} 18. Qa8 {[%clk 0:00:23]}  Nb6 {[%clk 0:01:15]} 19. Qa7 {[%clk 0:00:18]}  Nxc4 {[%clk 0:01:15]} 20. Bf1 {[%clk 0:00:19]}  Qf5 {[%clk 0:00:54]} 21. Na4 {[%clk 0:00:14]}  e5 {[%clk 0:00:46]} 22. Nc5 {[%clk 0:00:09]}  exd4 {[%clk 0:00:40]} 23. exd4 {[%clk 0:00:09]}  Nd2 {[%clk 0:00:38]} 24. Bg2 {[%clk 0:00:05]}  Nf3+ {[%clk 0:00:36]} 25. Kh1 {[%clk 0:00:05]}  Nxd4 {[%clk 0:00:37]} 26. Nxb7 {[%clk 0:00:05]}  Bxb7 {[%clk 0:00:14]} 27. Qxd4 {[%clk 0:00:05]}  Bc8 {[%clk 0:00:09]} 28. Kg1 {[%clk 0:00:05]}  Bd7 {[%clk 0:00:09]} 29. Bf1 {[%clk 0:00:05]}  Re8 {[%clk 0:00:08]} 30. Qa7 {[%clk 0:00:05]}  h5 {[%clk 0:00:07]} 31. h4 {[%clk 0:00:05]}  g6 {[%clk 0:00:07]} 32. Qc7 {[%clk 0:00:03]}  Qe6 {[%clk 0:00:06]} 33. Ra1 {[%clk 0:00:03]}  Rc8 {[%clk 0:00:06]} 34. Qb7 {[%clk 0:00:03]}  c5 {[%clk 0:00:05]} 35. Ra7 {[%clk 0:00:04]}  Be8 {[%clk 0:00:05]} 36. Kh2 {[%clk 0:00:03]}  c4 {[%clk 0:00:05]} 37. Bh3 {[%clk 0:00:03]}  Qf6 {[%clk 0:00:02]} 38. Qxc8 {[%clk 0:00:03]}  Qxf2+ {[%clk 0:00:02]} 39. Bg2 {[%clk 0:00:03]}  Qxa7 {[%clk 0:00:01]} 40. Qxe8+ {[%clk 0:00:04]}  Kg7 {[%clk 0:00:01]} 41. Qe5+ {[%clk 0:00:04]}  Kg8 {[%clk 0:00:01]} 42. Qxd5 {[%clk 0:00:03]}  Qc7 {[%clk 0:00:01]} 43. Qe4 {[%clk 0:00:02]}  c3 {[%clk 0:00:02]} 44. Qc2 {[%clk 0:00:03]}  Kg7 {[%clk 0:00:02]} 45. Kh3 {[%clk 0:00:02]}  Qe5 {[%clk 0:00:02]} 46. Be4 {[%clk 0:00:02]}  Qd4 {[%clk 0:00:03]} 47. Qe2 {[%clk 0:00:02]}  Qc5 {[%clk 0:00:02]} 48. Bc2 {[%clk 0:00:03]}  Qg1 {[%clk 0:00:02]} 49. Qg2 {[%clk 0:00:02]}  Qd4 {[%clk 0:00:02]} 50. Kh2 {[%clk 0:00:03]}  Qc5 {[%clk 0:00:00]} 51. Qe2 {[%clk 0:00:03]} 1-0


[Site "https://www.chess.com"]

[Event "Titled Tuesday Blitz August 1 Early 2023"]
[White "Mitrabha, Guha"]
[Black "Sipila, Vilka"]
[WhiteFideId "5057000"]
[BlackFideId "505455"]
[WhiteElo "2845"]
[BlackElo "2632"]
[Result "1-0"]
[Round "3"]
[TimeControl "180+1"]
[Date "2023.08.01"]
[WhiteClock "0:00:35"]
[BlackClock "0:00:19"]
[Board "32"]

1. Nf3 {[%clk 0:03:00]}  f5 {[%clk 0:02:59]} 2. b3 {[%clk 0:03:00]}  Nf6 {[%clk 0:02:58]} 3. Bb2 {[%clk 0:03:00]}  e6 {[%clk 0:02:54]} 4. g3 {[%clk 0:02:59]}  Be7 {[%clk 0:02:54]} 5. Bg2 {[%clk 0:02:59]}  O-O {[%clk 0:02:54]} 6. O-O {[%clk 0:03:00]}  d6 {[%clk 0:02:54]} 7. c4 {[%clk 0:02:54]}  e5 {[%clk 0:02:54]} 8. Nc3 {[%clk 0:02:55]}  c6 {[%clk 0:02:53]} 9. d3 {[%clk 0:02:53]}  f4 {[%clk 0:02:49]} 10. c5 {[%clk 0:02:49]}  Na6 {[%clk 0:02:41]} 11. cxd6 {[%clk 0:02:37]}  Bxd6 {[%clk 0:02:42]} 12. Ne4 {[%clk 0:02:34]}  Nxe4 {[%clk 0:02:41]} 13. dxe4 {[%clk 0:02:35]}  Qe7 {[%clk 0:02:41]} 14. Qd2 {[%clk 0:02:32]}  Bg4 {[%clk 0:02:39]} 15. Rad1 {[%clk 0:02:31]}  Rad8 {[%clk 0:02:38]} 16. Qa5 {[%clk 0:02:30]}  Bc7 {[%clk 0:02:37]} 17. Qc3 {[%clk 0:02:26]}  Bxf3 {[%clk 0:02:32]} 18. Bxf3 {[%clk 0:02:22]}  Qb4 {[%clk 0:02:32]} 19. Qc2 {[%clk 0:02:19]}  Qa5 {[%clk 0:02:27]} 20. a3 {[%clk 0:02:18]}  Qc5 {[%clk 0:02:26]} 21. Qb1 {[%clk 0:02:16]}  Qb5 {[%clk 0:02:23]} 22. b4 {[%clk 0:02:05]}  Qc4 {[%clk 0:02:20]} 23. Kg2 {[%clk 0:02:01]}  h6 {[%clk 0:02:09]} 24. Rxd8 {[%clk 0:02:01]}  Rxd8 {[%clk 0:02:09]} 25. Rd1 {[%clk 0:02:01]}  Rxd1 {[%clk 0:01:58]} 26. Qxd1 {[%clk 0:02:02]}  Qa2 {[%clk 0:01:59]} 27. Qd2 {[%clk 0:01:55]}  fxg3 {[%clk 0:01:57]} 28. hxg3 {[%clk 0:01:55]}  Bb6 {[%clk 0:01:57]} 29. Qd7 {[%clk 0:01:24]}  Qf7 {[%clk 0:01:19]} 30. Qc8+ {[%clk 0:01:17]}  Kh7 {[%clk 0:01:11]} 31. Bxe5 {[%clk 0:01:16]}  c5 {[%clk 0:00:56]} 32. Bg4 {[%clk 0:01:09]}  Qg8 {[%clk 0:00:47]} 33. Qxb7 {[%clk 0:01:03]}  cxb4 {[%clk 0:00:42]} 34. Qxa6 {[%clk 0:00:59]}  b3 {[%clk 0:00:39]} 35. Qb5 {[%clk 0:00:57]}  Qf7 {[%clk 0:00:35]} 36. Bf3 {[%clk 0:00:55]}  g5 {[%clk 0:00:35]} 37. g4 {[%clk 0:00:54]}  h5 {[%clk 0:00:35]} 38. e3 {[%clk 0:00:46]}  Qe6 {[%clk 0:00:30]} 39. Qd5 {[%clk 0:00:38]}  Qe8 {[%clk 0:00:19]} 40. Qb7+ {[%clk 0:00:35]} 1-0


[Site "https://www.chess.com"]

[Event "Titled Tuesday Blitz August 1 Early 2023"]
[White "Pichot, Alan"]
[Black "NovoselovRoman"]
[WhiteFideId "110973"]
[WhiteElo "2832"]
[BlackElo "2603"]
[Result "1/2-1/2"]
[Round "3"]
[TimeControl "180+1"]
[Date "2023.08.01"]
[WhiteClock "0:00:06"]
[BlackClock "0:00:05"]
[Board "36"]

1. e4 {[%clk 0:02:45]}  d5 {[%clk 0:02:57]} 2. e5 {[%clk 0:02:43]}  c5 {[%clk 0:02:56]} 3. Nf3 {[%clk 0:02:42]}  Nc6 {[%clk 0:02:57]} 4. Bb5 {[%clk 0:02:42]}  Bf5 {[%clk 0:02:56]} 5. d4 {[%clk 0:02:39]}  e6 {[%clk 0:02:56]} 6. O-O {[%clk 0:02:38]}  Qb6 {[%clk 0:02:51]} 7. Nc3 {[%clk 0:02:36]}  a6 {[%clk 0:02:43]} 8. dxc5 {[%clk 0:02:32]}  Bxc5 {[%clk 0:02:38]} 9. Bxc6+ {[%clk 0:02:33]}  Qxc6 {[%clk 0:02:37]} 10. Nd4 {[%clk 0:02:29]}  Bxd4 {[%clk 0:02:33]} 11. Qxd4 {[%clk 0:02:30]}  Ne7 {[%clk 0:02:27]} 12. Be3 {[%clk 0:02:26]}  O-O {[%clk 0:02:21]} 13. g4 {[%clk 0:02:08]}  Bg6 {[%clk 0:02:09]} 14. f4 {[%clk 0:02:08]}  Rac8 {[%clk 0:01:59]} 15. Rf2 {[%clk 0:02:04]}  Qd7 {[%clk 0:01:37]} 16. Rd1 {[%clk 0:01:50]}  Rfd8 {[%clk 0:01:33]} 17. Qb6 {[%clk 0:01:33]}  Rc6 {[%clk 0:01:24]} 18. Qb4 {[%clk 0:01:32]}  Rdc8 {[%clk 0:00:49]} 19. h3 {[%clk 0:00:58]}  Rc4 {[%clk 0:00:48]} 20. Qb6 {[%clk 0:00:58]}  R8c6 {[%clk 0:00:32]} 21. Qa7 {[%clk 0:00:58]}  Qc8 {[%clk 0:00:33]} 22. f5 {[%clk 0:00:52]}  exf5 {[%clk 0:00:29]} 23. Nxd5 {[%clk 0:00:53]}  Nxd5 {[%clk 0:00:23]} 24. Rxd5 {[%clk 0:00:54]}  h5 {[%clk 0:00:17]} 25. Rfd2 {[%clk 0:00:23]}  Qe6 {[%clk 0:00:12]} 26. Rd8+ {[%clk 0:00:20]}  Kh7 {[%clk 0:00:13]} 27. Qb8 {[%clk 0:00:17]}  Rc8 {[%clk 0:00:13]} 28. Rxc8 {[%clk 0:00:17]}  Rxc8 {[%clk 0:00:14]} 29. Qxb7 {[%clk 0:00:18]}  fxg4 {[%clk 0:00:13]} 30. hxg4 {[%clk 0:00:14]}  Qxg4+ {[%clk 0:00:12]} 31. Qg2 {[%clk 0:00:13]}  Qf5 {[%clk 0:00:09]} 32. Bd4 {[%clk 0:00:11]}  Rxc2 {[%clk 0:00:05]} 33. Rxc2 {[%clk 0:00:07]}  Qxc2 {[%clk 0:00:06]} 34. Qxc2 {[%clk 0:00:04]}  Bxc2 {[%clk 0:00:07]} 35. Kg2 {[%clk 0:00:05]}  Kg6 {[%clk 0:00:07]} 36. Kg3 {[%clk 0:00:05]}  Kf5 {[%clk 0:00:07]} 37. e6 {[%clk 0:00:06]}  fxe6 {[%clk 0:00:06]} 38. Bxg7 {[%clk 0:00:05]}  Ke4 {[%clk 0:00:06]} 39. Kh4 {[%clk 0:00:03]}  Bd1 {[%clk 0:00:06]} 40. Kg5 {[%clk 0:00:04]}  Kd5 {[%clk 0:00:04]} 41. Bf6 {[%clk 0:00:03]}  Bf3 {[%clk 0:00:04]} 42. b4 {[%clk 0:00:03]}  e5 {[%clk 0:00:04]} 43. Kf5 {[%clk 0:00:03]}  Bg4+ {[%clk 0:00:04]} 44. Kg5 {[%clk 0:00:03]}  e4 {[%clk 0:00:04]} 45. Kf4 {[%clk 0:00:03]}  Kc4 {[%clk 0:00:04]} 46. Kxe4 {[%clk 0:00:03]}  Kxb4 {[%clk 0:00:05]} 47. Be7+ {[%clk 0:00:03]}  Kc3 {[%clk 0:00:04]} 48. a3 {[%clk 0:00:04]}  Kb3 {[%clk 0:00:05]} 49. Kd4 {[%clk 0:00:04]}  a5 {[%clk 0:00:05]} 50. Ke3 {[%clk 0:00:05]}  a4 {[%clk 0:00:06]} 51. Kd4 {[%clk 0:00:04]}  Kb2 {[%clk 0:00:04]} 52. Ke3 {[%clk 0:00:05]}  Kb3 {[%clk 0:00:05]} 53. Kd4 {[%clk 0:00:05]}  Bf3 {[%clk 0:00:04]} 54. Ke3 {[%clk 0:00:06]}  Bg4 {[%clk 0:00:05]} 1/2-1/2


[Site "https://www.chess.com"]

[Event "Titled Tuesday Blitz August 1 Early 2023"]
[White "Bodnaruk, Anastasia"]
[Black "Sychev, Klementy"]
[WhiteFideId "4181751"]
[BlackFideId "4114060"]
[WhiteElo "2597"]
[BlackElo "2823"]
[Result "1-0"]
[Round "3"]
[TimeControl "180+1"]
[Date "2023.08.01"]
[WhiteClock "0:00:03"]
[BlackClock "0:00:00"]
[Board "37"]

1. e4 {[%clk 0:03:00]}  e5 {[%clk 0:02:59]} 2. Nf3 {[%clk 0:03:00]}  Nc6 {[%clk 0:03:00]} 3. Bb5 {[%clk 0:02:58]}  a6 {[%clk 0:03:00]} 4. Ba4 {[%clk 0:02:59]}  f5 {[%clk 0:02:59]} 5. d3 {[%clk 0:02:56]}  fxe4 {[%clk 0:02:59]} 6. dxe4 {[%clk 0:02:57]}  Nf6 {[%clk 0:03:00]} 7. Qd3 {[%clk 0:02:51]}  d6 {[%clk 0:02:55]} 8. a3 {[%clk 0:02:39]}  Be6 {[%clk 0:02:40]} 9. Nbd2 {[%clk 0:02:22]}  Be7 {[%clk 0:02:37]} 10. O-O {[%clk 0:02:20]}  Qd7 {[%clk 0:02:02]} 11. Bb3 {[%clk 0:02:05]}  Bxb3 {[%clk 0:01:54]} 12. Qxb3 {[%clk 0:02:04]}  O-O-O {[%clk 0:01:53]} 13. Qd3 {[%clk 0:01:43]}  g5 {[%clk 0:01:44]} 14. c4 {[%clk 0:01:24]}  g4 {[%clk 0:01:41]} 15. Ne1 {[%clk 0:01:14]}  Nh5 {[%clk 0:01:37]} 16. g3 {[%clk 0:01:13]}  Nd4 {[%clk 0:01:29]} 17. Nc2 {[%clk 0:01:08]}  Nxc2 {[%clk 0:01:22]} 18. Qxc2 {[%clk 0:01:08]}  Ng7 {[%clk 0:01:15]} 19. b4 {[%clk 0:01:00]}  h5 {[%clk 0:01:15]} 20. Nb3 {[%clk 0:00:58]}  h4 {[%clk 0:01:09]} 21. Be3 {[%clk 0:00:56]}  Rh7 {[%clk 0:01:04]} 22. Rad1 {[%clk 0:00:53]}  Rdh8 {[%clk 0:01:01]} 23. Rd2 {[%clk 0:00:53]}  Qa4 {[%clk 0:00:57]} 24. c5 {[%clk 0:00:37]}  Kb8 {[%clk 0:00:53]} 25. Qb2 {[%clk 0:00:32]}  Ne6 {[%clk 0:00:52]} 26. Na5 {[%clk 0:00:20]}  Qe8 {[%clk 0:00:40]} 27. cxd6 {[%clk 0:00:17]}  cxd6 {[%clk 0:00:38]} 28. Qb3 {[%clk 0:00:17]}  Ng5 {[%clk 0:00:33]} 29. Bxg5 {[%clk 0:00:15]}  Bxg5 {[%clk 0:00:33]} 30. Rc2 {[%clk 0:00:13]}  hxg3 {[%clk 0:00:32]} 31. fxg3 {[%clk 0:00:13]}  Qb5 {[%clk 0:00:31]} 32. Nc4 {[%clk 0:00:08]}  Bd8 {[%clk 0:00:26]} 33. Rd1 {[%clk 0:00:08]}  Bb6+ {[%clk 0:00:25]} 34. Kh1 {[%clk 0:00:08]}  Bd4 {[%clk 0:00:22]} 35. Nxd6 {[%clk 0:00:07]}  Qd7 {[%clk 0:00:17]} 36. Nf5 {[%clk 0:00:06]}  Rxh2+ {[%clk 0:00:16]} 37. Rxh2 {[%clk 0:00:06]}  Rxh2+ {[%clk 0:00:16]} 38. Kxh2 {[%clk 0:00:06]}  Qh7+ {[%clk 0:00:16]} 39. Nh4 {[%clk 0:00:07]}  Qxe4 {[%clk 0:00:16]} 40. Qa2 {[%clk 0:00:05]}  Qe3 {[%clk 0:00:14]} 41. Qg2 {[%clk 0:00:05]}  Qxa3 {[%clk 0:00:14]} 42. Nf5 {[%clk 0:00:04]}  Qxb4 {[%clk 0:00:09]} 43. Nxd4 {[%clk 0:00:04]}  exd4 {[%clk 0:00:10]} 44. Qd2 {[%clk 0:00:04]}  Qb6 {[%clk 0:00:07]} 45. Qxd4 {[%clk 0:00:04]}  Qh6+ {[%clk 0:00:07]} 46. Kg2 {[%clk 0:00:04]}  Qh3+ {[%clk 0:00:07]} 47. Kf2 {[%clk 0:00:04]}  Qh2+ {[%clk 0:00:08]} 48. Ke3 {[%clk 0:00:04]}  Qxg3+ {[%clk 0:00:08]} 49. Ke4 {[%clk 0:00:05]}  Qf3+ {[%clk 0:00:08]} 50. Ke5 {[%clk 0:00:05]}  Qe2+ {[%clk 0:00:07]} 51. Kd6 {[%clk 0:00:04]}  g3 {[%clk 0:00:06]} 52. Kd7 {[%clk 0:00:03]}  g2 {[%clk 0:00:05]} 53. Qd6+ {[%clk 0:00:03]}  Ka7 {[%clk 0:00:05]} 54. Qc5+ {[%clk 0:00:03]}  Ka8 {[%clk 0:00:04]} 55. Qf8+ {[%clk 0:00:03]}  Ka7 {[%clk 0:00:04]} 56. Qc5+ {[%clk 0:00:03]}  Ka8 {[%clk 0:00:03]} 57. Rc1 {[%clk 0:00:03]}  Qd2+ {[%clk 0:00:02]} 58. Ke7 {[%clk 0:00:03]}  Qe2+ {[%clk 0:00:02]} 59. Kf7 {[%clk 0:00:04]}  Qf1+ {[%clk 0:00:02]} 60. Ke6 {[%clk 0:00:03]}  Qe2+ {[%clk 0:00:02]} 61. Kd7 {[%clk 0:00:03]}  Qd3+ {[%clk 0:00:00]} 62. Kc8 {[%clk 0:00:03]} 1-0


[Site "https://www.chess.com"]